[Event "Polish University-ch Open 2024"]
[Site "Lublin"]
[Date "2024.02.24"]
[Round "6.2"]
[White "Janik, Igor"]
[Black "Baum, Jonasz"]
[Result "1/2-1/2"]
[ECO "D02"]
[WhiteElo "2499"]
[BlackElo "2400"]
[Annotator "TA"]
[PlyCount "88"]
[EventDate "2024.02.22"]
[EventType "swiss"]
[EventCountry "POL"]
[SourceTitle "playchess.com"]
[Source "ChessBase"]
[SourceQuality "1"]
[TimeControl "600+3"]

{[%evp 11,88,0,19,6,18,0,10,10,22,22,20,11,11,0,17,-83,16,6,66,63,70,52,57,54,57,49,68,45,162,138,248,145,145,138,238,108,101,90,110,96,103,100,98,72,97,72,80,48,50,50,50,-65,-65,-62,27,27,27,27,27,27,27,27,27,27,27,27,27,28,36,37,45,0,0,0,122,0,46,30,35]} 1. Nf3 {[%emt 0:01:27]} d5 {[%emt 0:00:02]} 2. g3 {[%emt 0:00:01]} g6 {[%emt 0:00:00]} 3. d4 {[%emt 0:00:06]} Bg7 {[%emt 0:00:02]} 4. c3 {[%emt 0:00:00]} Nf6 {[%emt 0:00:01]} 5. Bg2 {[%emt 0:00:01]} O-O {[%emt 0:00:02]} 6. O-O {[%emt 0:00:02]} c6 {[%emt 0:00:17]} 7. a4 {[%emt 0:00:01]} a5 {[%emt 0:00:02]} 8. Qb3 {[%emt 0:00:03]} b6 {[%emt 0:00:21]} 9. Ne5 {[%emt 0:00:37] The position is equal.} Ba6 {[%emt 0:00:04]} 10. Re1 {[%emt 0:00:01]} Ne4 {[%emt 0:00:25]} 11. Bf4 {[%emt 0:00:38]} e6 {[%emt 0:00:36]} 12. Qc2 {[%emt 0:01:08]} Nd6 {[%emt 0:00:10]} 13. Nd2 {[%emt 0:00:05]} (13. h4 $11) 13... f6 {[%emt 0:00:44]} (13... g5 $17 14. Be3 Nf5) 14. Nd3 {[%emt 0:00:14]} g5 {[%emt 0:00:14]} ({Black should play} 14... f5 $11) 15. Bxd6 $14 {[%emt 0:00:04]} Qxd6 {[%emt 0:00:01]} 16. e4 {[%emt 0:00:01]} Nd7 {[%emt 0:00:15]} 17. Re3 {[%emt 0:00:24]} f5 {[%emt 0:01:51]} 18. exf5 {[%emt 0:00:16]} exf5 {[%emt 0:00:02]} 19. Rae1 {[%emt 0:00:04]} Bxd3 {[%emt 0:01:00]} (19... Nf6 $1 $14) 20. Qxd3 $18 {[%emt 0:00:05]} Nf6 {[%emt 0:00:01]} (20... Rf6 $16 {keeps fighting.} 21. c4 Kh8 22. cxd5 cxd5) 21. Re6 {[%emt 0:00:26]} (21. Qxf5 $18 {[%cal Oe3e6] Re6! would now be deadly.} g4 22. h3) 21... Qd7 $16 {[%emt 0:00:20] [#] aiming for ...Ne4.} 22. Re7 {[%emt 0:00:21] White is much more active.} (22. Qxf5 Ne4 23. Bxe4 Rxf5 24. Bxf5 c5) 22... Rae8 {[%emt 0:00:01]} (22... Qc8 $16) 23. Rxe8 {[%emt 0:00:01]} (23. Rxd7 $18 Rxe1+ 24. Bf1 Nxd7 25. Nf3) 23... Rxe8 {[%emt 0:00:22]} 24. Rxe8+ {[%emt 0:00:02]} Nxe8 {[%emt 0:00:14]} 25. Qa6 {[%emt 0:00:14]} Qc7 {[%emt 0:00:25]} 26. Qa8 {[%emt 0:00:33]} Kf7 {[%emt 0:03:49]} 27. Nf3 {[%emt 0:00:05]} h6 {[%emt 0:00:00]} 28. Bf1 {[%emt 0:00:11]} (28. b4 {is more complex.} Bf6 29. b5 cxb5 30. Qxd5+ Ke7 31. axb5 g4 32. Nh4) 28... Nd6 {[%emt 0:00:00]} 29. Ne5+ {[%emt 0:00:01]} Bxe5 {[%emt 0:00:00]} 30. dxe5 $14 {[%emt 0:04:21][%mdl 4096] Endgame. KQB-KQN} Qc8 $1 {[%emt 0:00:12]} 31. Qa6 {[%emt 0:00:00]} ({White should try} 31. Qxc8 $14 Nxc8 32. f4) 31... Qxa6 $15 {[%emt 0:00:03]} 32. Bxa6 {[%emt 0:00:06]} Nc4 {[%emt 0:00:00]} (32... Ne4 $15 33. Bb7 Ke6 34. Bxc6 Kxe5) 33. Bxc4 $11 {[%emt 0:00:00]} dxc4 {[%emt 0:00:06] KP-KP} 34. f4 {[%emt 0:00:00]} g4 {[%emt 0:00:03]} 35. Kf2 {[%emt 0:00:00]} Ke6 {[%emt 0:00:00]} 36. Ke3 {[%emt 0:00:00] [#] Kd4 is the strong threat.} Kd5 {[%emt 0:00:00]} 37. Kd2 {[%emt 0:00:00]} c5 {[%emt 0:00:00]} 38. Kc2 {[%emt 0:00:00]} Ke6 {[%emt 0:00:12]} 39. Kb1 {[%emt 0:00:00]} Kd5 {[%emt 0:00:00]} 40. Ka2 {[%emt 0:00:00]} Ke6 {[%emt 0:00:00]} 41. Ka3 {[%emt 0:00:00]} Kd5 {[%emt 0:00:00]} 42. b3 {[%emt 0:00:00]} Ke6 {[%emt 0:00:00]} (42... cxb3 $11 {remains equal.} 43. Kxb3 c4+ 44. Kc2 Kc5) 43. b4 {[%emt 0:00:00]} (43. bxc4 $16 Kd7 44. Kb2) 43... Kd5 {[%emt 0:00:00]} (43... Ke7 $11 {feels stronger.}) 44. b5 {[%emt 0:00:00]} Ke6 {[%emt 0:00:00] Blacks defense is rewarded with a draw.   Weighted Error Value: White=0.28 (precise) /Black=0.33.  Mistake:       	White=5     	Black=8      Inaccurate:     	White=2     	---        OK:         	White=12    	Black=9      Best:        	White=4     	Black=4      Strong:       	---       	Black=1} 1/2-1/2

[Event "Polish University-ch Open 2024"]
[Site "Lublin"]
[Date "2024.02.24"]
[Round "6.4"]
[White "Molenda, Marcin"]
[Black "Szpar, Milosz"]
[Result "0-1"]
[ECO "B23"]
[WhiteElo "2377"]
[BlackElo "2495"]
[Annotator "TA"]
[PlyCount "54"]
[EventDate "2024.02.22"]
[EventType "swiss"]
[EventCountry "POL"]
[SourceTitle "playchess.com"]
[Source "ChessBase"]
[SourceQuality "1"]
[TimeControl "600+3"]

{[%evp 9,54,-14,-3,-58,-52,-57,-36,-46,-51,-108,-118,-146,-137,-121,-71,-206,-215,-202,-206,-261,-237,-329,-302,-368,-304,-432,-373,-354,-338,-516,-401,-605,-589,-560,-372,-595,-574,-685,-729,-873,-829,-940,-915,-1100,-1039,-1668,-1509]} 1. e4 {[%emt 0:00:02]} c5 {[%emt 0:00:44]} 2. Nc3 {[%emt 0:00:09]} Nc6 {[%emt 0:00:16]} 3. f4 {[%emt 0:00:01]} e6 {[%emt 0:00:15]} 4. Nf3 {[%emt 0:00:29]} a6 {[%emt 0:00:43]} 5. e5 {[%emt 0:03:20]} d6 {[%emt 0:00:40]} 6. Ne4 {[%emt 0:01:10]} (6. d4 $11) 6... dxe5 $15 {[%emt 0:00:30]} 7. fxe5 {[%emt 0:01:35] [#]} Nxe5 $1 {[%emt 0:00:14]} 8. Nxe5 {[%emt 0:00:53] Strongly threatening Qf3. Black is slightly better.} Qd4 {[%emt 0:00:02][%csl LRe4,LRe5]} 9. Qf3 {[%emt 0:00:25]} Qxe5 $17 {[%emt 0:00:03]} 10. d4 {[%emt 0:00:15]} cxd4 {[%emt 0:02:15] Hoping for ...f5.} (10... Qxd4 11. Bg5 f5 (11... Qxb2 12. Rd1 $17) 12. Nd2 $17) 11. Bf4 {[%emt 0:00:05]} Qd5 {[%emt 0:00:27]} (11... Qa5+ $142 12. Bd2 Qf5 13. Qxf5 exf5) 12. O-O-O {[%emt 0:00:36] Now White is beyond hope.} (12. Bd3 $17 {is a better defense.}) 12... e5 $1 $19 {[%emt 0:00:18]} 13. c4 {[%emt 0:00:18]} Qa5 {[%emt 0:00:14]} 14. Bg3 {[%emt 0:00:08][%cal Oc4c5]} Nh6 {[%emt 0:00:49]} (14... Qxa2 15. Bxe5 Nh6 16. Rxd4 $11 (16. Bxd4 Bg4 $11)) 15. Qb3 {[%emt 0:00:34]} Be7 {[%emt 0:00:19] ...f5 would now be deadly.} 16. Bd3 {[%emt 0:00:06]} Nf5 {[%emt 0:00:13] Dodges c5} 17. Rdf1 {[%emt 0:00:21]} (17. Be1 $142 Qc7 18. Bd2) 17... O-O {[%emt 0:00:21] White must now prevent ...Ne3.} 18. Be1 {[%emt 0:00:02]} Qc7 {[%emt 0:00:04]} 19. Kb1 {[%emt 0:00:05]} (19. Bd2 {was worth a try.}) 19... b5 {[%emt 0:00:05] [#] Threatens to win with ...Ne3.} 20. c5 {[%emt 0:00:23]} (20. Nc3 $142 bxc4 21. Nd5 cxb3 22. Nxc7 bxa2+ 23. Ka1) 20... Be6 {[%emt 0:00:06]} ({Weaker is} 20... Bxc5 21. Nxc5 Ne3 22. Qb4 $17) 21. Qa3 {[%emt 0:00:03]} Rfc8 {[%emt 0:00:33][%cal Of5e3] And now ...Ne3! would win.} 22. Rf2 {[%emt 0:00:01]} (22. Bd2 {was necessary.}) 22... Ne3 {[%emt 0:00:08] Black is clearly winning.} ({Inferior is} 22... Bxc5 23. Qxc5 Qxc5 24. Nxc5 Rxc5 25. Bxf5 Bxf5+ 26. Rxf5 $11) 23. Ba5 {[%emt 0:00:02]} Qc6 {[%emt 0:00:09][%cal Oe6d5]} 24. b3 {[%emt 0:00:07]} Bd5 {[%emt 0:00:16]} 25. Nd2 {[%emt 0:00:03]} e4 {[%emt 0:00:02]} 26. Be2 {[%emt 0:00:01]} d3 {[%emt 0:00:01]} 27. Bg4 {[%emt 0:00:01]} Nxg4 {[%emt 0:00:06] Weighted Error Value: White=0.91/Black=0.30.  Mistake:       	White=6     	Black=1      Inaccurate:     	White=1     	---        OK:         	White=4     	Black=6      Best:        	---       	Black=2      Strong:       	---       	Black=1} 0-1

[Event "Polish University-ch Open 2024"]
[Site "Lublin"]
[Date "2024.02.24"]
[Round "6.5"]
[White "Karpus, Michal"]
[Black "Snihur, Piotr"]
[Result "0-1"]
[ECO "C34"]
[WhiteElo "2243"]
[BlackElo "2278"]
[Annotator "TA"]
[PlyCount "40"]
[EventDate "2024.02.22"]
[EventType "swiss"]
[EventCountry "POL"]
[SourceTitle "playchess.com"]
[Source "ChessBase"]
[SourceQuality "1"]
[TimeControl "600+3"]

{[%evp 9,39,-31,-35,-90,-82,-98,-101,-91,-63,-85,-85,-101,-119,-114,-110,-153,-114,-185,-198,-468,-473,-432,-478,-418,-328,-1956,-411,-1945,-1946,-29993,-29993,-29999]} 1. e4 {[%emt 0:00:03]} e5 {[%emt 0:00:16]} 2. f4 {[%emt 0:00:09]} exf4 {[%emt 0:00:26]} 3. Nf3 {[%emt 0:00:02]} Nf6 {[%emt 0:00:35]} 4. e5 {[%emt 0:00:04]} Nh5 {[%emt 0:00:06]} 5. Be2 {[%emt 0:01:46]} d6 {[%emt 0:02:34] Zielt auf ...dxe5 ab.} 6. exd6 {[%emt 0:01:05]} (6. O-O $15) 6... Bxd6 $17 {[%emt 0:00:08]} 7. O-O {[%emt 0:00:04]} O-O {[%emt 0:00:03]} 8. d4 {[%emt 0:00:04] Schwarz steht besser.} c5 {[%emt 0:01:31]} 9. d5 {[%emt 0:00:51]} Bg4 {[%emt 0:00:48][%cal Oc5c4]} 10. Nc3 {[%emt 0:00:33]} Nd7 {[%emt 0:00:48]} 11. Ne4 {[%emt 0:01:12]} Ndf6 {[%emt 0:00:24]} 12. Nf2 {[%emt 0:01:18]} Re8 {[%emt 0:00:08][%cal Oc5c4] Schwarz steht aktiver.} 13. Nxg4 {[%emt 0:01:23]} (13. c4 $17) 13... Nxg4 $19 {[%emt 0:00:02]} 14. Ne1 $2 {[%emt 0:00:06] [#]} (14. c4) 14... Nxh2 $1 {[%emt 0:00:59][%mdl 512]} 15. Bxh5 {[%emt 0:00:20]} Nxf1 {[%emt 0:00:07]} 16. Kxf1 {[%emt 0:00:02] Weiss hat schwache schwarze Felder} Qh4 {[%emt 0:00:06]} 17. Bd2 $2 {[%emt 0:00:29]} (17. Nd3 f3 18. Qxf3) 17... Qh1+ {[%emt 0:00:28]} 18. Kf2 {[%emt 0:00:01]} c4 {[%emt 0:00:04] [#] ( -> ...Bc5+)} 19. Bg4 {[%emt 0:01:01]} Bc5+ {[%emt 0:00:09]} 20. Kf3 {[%emt 0:00:03]} Qf1# {[%emt 0:00:06] Gewichteter Fehlerwert: Weiß=1.23/Schwarz=0.04 (makellos) .  Fehler:       	Weiß=3     	---        Ungenau:       	Weiß=3     	Schwarz=1     OK:         	Weiß=3     	Schwarz=5     Bester:       	---       	Schwarz=1} 0-1

[Event "Polish University-ch Open 2024"]
[Site "Lublin"]
[Date "2024.02.24"]
[Round "6.6"]
[White "Szustakowski, Antoni"]
[Black "Smieszek, Wojciech"]
[Result "1-0"]
[ECO "D45"]
[WhiteElo "2354"]
[BlackElo "2130"]
[Annotator "TA"]
[PlyCount "107"]
[EventDate "2024.02.22"]
[EventType "swiss"]
[EventCountry "POL"]
[SourceTitle "playchess.com"]
[Source "ChessBase"]
[SourceQuality "1"]
[TimeControl "600+3"]

{[%evp 12,107,18,8,23,24,48,43,54,29,78,62,94,103,91,91,114,106,135,116,209,207,201,194,247,256,252,226,230,221,227,227,220,220,220,225,225,0,0,0,0,0,0,0,0,0,0,0,0,0,0,0,0,0,0,0,0,0,0,0,0,0,0,0,0,0,0,0,0,0,0,0,0,0,0,0,0,0,0,0,8,0,0,0,0,0,5,5,5,0,0,0,0,0,0,-8,29987,29988]} 1. d4 {[%emt 0:00:01]} d5 {[%emt 0:02:12]} 2. c4 {[%emt 0:02:14]} e6 {[%emt 0:00:02]} 3. Nc3 {[%emt 0:00:02]} Nf6 {[%emt 0:00:02]} 4. Nf3 {[%emt 0:00:02]} c6 {[%emt 0:00:02]} 5. e3 {[%emt 0:00:14]} Be7 {[%emt 0:00:19]} 6. Qc2 {[%emt 0:00:15]} O-O {[%emt 0:00:21]} 7. Bd3 {[%emt 0:00:02]} dxc4 {[%emt 0:00:39]} 8. Bxc4 {[%emt 0:00:01]} a6 {[%emt 0:01:15]} 9. O-O {[%emt 0:00:19]} b5 {[%emt 0:00:52] Weiß steht etwas besser.} 10. Be2 {[%emt 0:00:14]} c5 {[%emt 0:00:09]} (10... Bb7 $11) 11. dxc5 $16 {[%emt 0:00:10] Weiß steht aktiver.} Nc6 {[%emt 0:01:13]} 12. a3 {[%emt 0:01:04] Lässt Nb4 nicht zu} b4 {[%emt 0:00:35]} 13. Ne4 {[%emt 0:00:17]} Bb7 {[%emt 0:00:15]} 14. Rd1 {[%emt 0:01:24]} Qc7 {[%emt 0:01:05]} 15. Nd6 {[%emt 0:01:09]} Nd7 {[%emt 0:00:05]} (15... Rfd8 $16 {ist wohl besser.}) 16. Nxb7 $18 {[%emt 0:00:28]} Qxb7 {[%emt 0:00:01] [#]} 17. Nd4 $1 {[%emt 0:00:01]} bxa3 {[%emt 0:00:48]} (17... Nde5 {ist eine bessere Verteidigung.} 18. f4 Nxd4 19. exd4 Nc6) 18. Nxc6 {[%emt 0:00:08]} ({Weniger gut wäre} 18. Rxa3 Nb4 19. c6 Qc7 $16) (18. bxa3 Rac8 19. Bf3 Ndb8) 18... Qxc6 {[%emt 0:00:30]} 19. Bf3 {[%emt 0:00:01]} ({Nicht} 19. bxa3 Qxc5 20. Qa2 Rfd8 $14) 19... Qxc5 {[%emt 0:00:15]} 20. Qxc5 {[%emt 0:00:20]} Nxc5 {[%emt 0:00:01][%cal Bd7c5,Bc5b3,Bb3c1][%mdl 32]} 21. Bxa8 {[%emt 0:00:03]} ({Minderwertig wäre} 21. Rxa3 Rab8 $11) 21... Nb3 {[%emt 0:00:02]} 22. Ra2 {[%emt 0:00:38] Und jetzt Bf3 wäre schön.} Nxc1 {[%emt 0:00:20]} 23. Rxc1 {[%emt 0:00:01] Droht Bf3 und aus.} axb2 {[%emt 0:00:01]} 24. Rxb2 {[%emt 0:00:12]} ({Günstiger ist} 24. Rb1 $18 {Bf3 ist eine echte Drohung.} Rxa8 25. Raxb2) 24... Ba3 $1 $11 {[%emt 0:00:02]} 25. Rb6 {[%emt 0:00:26]} Bxc1 {[%emt 0:00:03]} 26. Rxa6 {[%emt 0:00:01][%mdl 4096] Endspiel. KRB-KRB} Bb2 {[%emt 0:00:03]} 27. g4 {[%emt 0:00:07]} h6 {[%emt 0:00:04]} 28. Kg2 {[%emt 0:00:02]} Bf6 {[%emt 0:00:02]} 29. Kg3 {[%emt 0:00:02]} g5 {[%emt 0:00:05]} 30. Be4 {[%emt 0:00:03]} Rc8 {[%emt 0:00:03]} 31. Ra7 {[%emt 0:00:04]} Kg7 {[%emt 0:00:01]} 32. h3 {[%emt 0:00:19]} Rc7 {[%emt 0:00:03]} 33. Ra5 {[%emt 0:00:14]} (33. Rxc7 $5 Be5+ $8 34. Kf3 Bxc7 35. Bc6 $11) 33... Rc3 {[%emt 0:00:03]} 34. Kf3 {[%emt 0:00:07]} Rc7 {[%emt 0:00:02]} 35. Rb5 {[%emt 0:00:06]} Ra7 {[%emt 0:00:02]} 36. Rb8 {[%emt 0:00:15]} Be5 {[%emt 0:00:05]} 37. Rc8 {[%emt 0:00:03]} Rc7 {[%emt 0:00:04]} 38. Rd8 {[%emt 0:00:06]} Bf6 {[%emt 0:00:02]} 39. Ra8 {[%emt 0:00:02]} Be5 {[%emt 0:00:02]} 40. Ke2 {[%emt 0:00:09]} Bf6 {[%emt 0:00:01]} 41. f4 {[%emt 0:00:08]} gxf4 {[%emt 0:00:03]} 42. exf4 {[%emt 0:00:01]} Rc3 {[%emt 0:00:06]} 43. Bd3 {[%emt 0:00:01]} Rb3 {[%emt 0:00:03]} 44. Ra7 {[%emt 0:00:06]} Rb2+ {[%emt 0:00:02]} 45. Kf3 {[%emt 0:00:01]} Rf2+ {[%emt 0:00:03]} 46. Kg3 {[%emt 0:00:10]} (46. Kxf2 $5 Bd4+ $8 47. Ke2 Bxa7 48. h4 $11) 46... Rd2 {[%emt 0:00:03]} 47. Rd7 {[%emt 0:00:03]} Ra2 {[%emt 0:00:04]} 48. h4 {[%emt 0:00:02]} (48. Bc4 $5 Ra3+ $8 49. Kg2 $11) 48... Ra3 {[%emt 0:00:03]} 49. g5 {[%emt 0:00:02]} hxg5 {[%emt 0:00:01]} 50. hxg5 {[%emt 0:00:00]} Be7 {[%emt 0:00:04]} 51. Kg4 {[%emt 0:00:16]} Kf8 {[%emt 0:00:05]} 52. Be4 {[%emt 0:00:06]} Ra4 {[%emt 0:00:03]} 53. Bc6 {[%emt 0:00:02] [#]} e5 $2 {[%emt 0:00:02][%mdl 8192]} 54. Bxa4 {[%emt 0:00:07] Gewichteter Fehlerwert: Weiß=0.14 (sehr präzise) /Schwarz=0.30.  Verlustzug:     	---       	Schwarz=1     Gewinn verpasst:   	Weiß=1     	---        Fehler:       	---       	Schwarz=3     Ungenau:       	---       	Schwarz=1     OK:         	Weiß=15    	Schwarz=21    Bester:       	Weiß=3     	---        Stark:        	---       	Schwarz=1} 1-0

[Event "Polish University-ch Open 2024"]
[Site "Lublin"]
[Date "2024.02.24"]
[Round "6.7"]
[White "Klepek, Witold"]
[Black "Pacan-Milej, Kosma"]
[Result "1-0"]
[ECO "B12"]
[WhiteElo "2262"]
[BlackElo "2438"]
[Annotator "TA"]
[PlyCount "123"]
[EventDate "2024.02.22"]
[EventType "swiss"]
[EventCountry "POL"]
[SourceTitle "playchess.com"]
[Source "ChessBase"]
[SourceQuality "1"]
[TimeControl "600+3"]

{[%evp 26,123,51,60,46,53,62,0,0,-17,18,-81,0,0,0,0,11,9,10,6,10,0,9,6,6,-60,-59,-54,-67,-42,-69,-86,-85,-64,0,0,0,0,0,-6,0,-27,11,13,16,17,16,19,18,18,145,29,127,129,239,14,227,245,228,227,29975,0,0,0,29987,29988,29988,29989,29989,29990,29993,29961,29958,29958,29968,29969,29969,29969,29968,29964,29965,29963,29962,10297,29966,29965,29969,29971,29973,29971,29971,29972,29971,29961,29963,29954,29969,29965,29964,5106]} 1. e4 {[%emt 0:00:04]} c6 {[%emt 0:01:17]} 2. d4 {[%emt 0:00:03]} d5 {[%emt 0:00:01]} 3. e5 {[%emt 0:00:04]} Bf5 {[%emt 0:00:03]} 4. c4 {[%emt 0:00:04]} e6 {[%emt 0:00:09]} 5. Nc3 {[%emt 0:00:01]} Ne7 {[%emt 0:00:06]} 6. h3 {[%emt 0:00:12]} Nd7 {[%emt 0:00:13]} 7. Nf3 {[%emt 0:00:02]} h6 {[%emt 0:00:06]} 8. b3 {[%emt 0:00:21]} Nc8 {[%emt 0:01:16]} 9. Bb2 {[%emt 0:00:17]} Be7 {[%emt 0:00:35]} 10. Be2 {[%emt 0:00:12]} O-O {[%emt 0:00:08]} 11. O-O {[%emt 0:00:07]} Bh7 {[%emt 0:00:32]} 12. Rc1 {[%emt 0:00:26]} a6 {[%emt 0:00:25]} 13. Bd3 {[%emt 0:00:55]} Bxd3 {[%emt 0:00:37]} 14. Qxd3 {[%emt 0:00:02]} dxc4 {[%emt 0:00:02]} 15. bxc4 {[%emt 0:00:04]} b5 {[%emt 0:00:01]} 16. Qe4 {[%emt 0:01:52]} (16. Ne4 $14) 16... bxc4 $11 {[%emt 0:00:30]} 17. Qxc6 {[%emt 0:00:37]} Ncb6 {[%emt 0:00:03]} 18. Nd2 {[%emt 0:00:36]} (18. Rfd1 $11) 18... Rc8 {[%emt 0:00:18]} (18... Nxe5 $1 $17 19. dxe5 Rc8) 19. Qe4 $1 $11 {[%emt 0:00:08]} Nb8 {[%emt 0:01:00]} 20. Nd1 {[%emt 0:00:57]} Qd5 {[%emt 0:00:12]} 21. Ne3 {[%emt 0:00:16]} Qxe4 {[%emt 0:00:17]} 22. Nxe4 {[%emt 0:00:01]} Rfd8 {[%emt 0:00:14]} 23. Nd2 {[%emt 0:00:39]} Na4 {[%emt 0:00:39]} 24. Ndxc4 {[%emt 0:00:24]} Nc6 {[%emt 0:01:17]} 25. Ba3 {[%emt 0:01:00]} (25. Rfd1 $11) 25... Bxa3 $15 {[%emt 0:00:04]} (25... Rxd4 $6 26. Nd6 Rc7 27. Rc2 $11) 26. Nxa3 {[%emt 0:00:01]} Nxd4 {[%emt 0:00:05]} 27. Rxc8 {[%emt 0:00:02]} Rxc8 {[%emt 0:00:02]} 28. Rd1 {[%emt 0:00:07]} Nc3 $1 {[%emt 0:00:13]} 29. Rd2 {[%emt 0:00:21]} (29. Rxd4 $2 Ne2+ (29... Nxa2 $2 30. Ra4 $18) 30. Kf1 Nxd4 $19) 29... Nc6 {[%emt 0:00:38]} (29... Rc5 $1 $15) 30. Nac4 $11 {[%emt 0:00:05]} Nb4 {[%emt 0:00:04]} 31. a3 {[%emt 0:00:32]} Nbd5 {[%emt 0:00:01]} 32. Rb2 {[%emt 0:00:17]} Nb5 {[%emt 0:00:19]} 33. Nxd5 {[%emt 0:00:14]} exd5 {[%emt 0:00:03]} 34. Nd6 {[%emt 0:00:04]} Rc1+ {[%emt 0:00:08]} 35. Kh2 {[%emt 0:00:00]} Nxa3 {[%emt 0:00:02]} 36. Rb8+ {[%emt 0:00:04]} Kh7 {[%emt 0:00:00]} 37. Nxf7 {[%emt 0:00:03]} d4 {[%emt 0:00:02]} (37... Rc7 $11 38. Nd8 g5) 38. Rd8 {[%emt 0:00:07]} (38. e6 $16 Rc7 39. Rd8) 38... Nb5 {[%emt 0:00:06]} (38... Kg6 $11 {keeps the balance.} 39. Nh8+ Kf5) 39. f4 $16 {[%emt 0:00:01]} Kg6 {[%emt 0:00:03]} (39... Rc7 $16) 40. Nd6 $2 {[%emt 0:00:12]} (40. Rf8 $1 $18 d3 41. g4) 40... Rd1 $2 {[%emt 0:00:06] [#]} (40... Rc2 $11 {and Black stays safe.}) 41. f5+ $1 $18 {[%emt 0:00:09]} Kg5 {[%emt 0:00:00] [#]} 42. h4+ $1 {[%emt 0:00:10]} Kxh4 $2 {[%emt 0:00:04]} (42... Kf4 $18) 43. e6 $2 {[%emt 0:00:00]} (43. f6 {mates} gxf6 44. Rg8 Rf1 45. g3+ Kh5 46. Ne8 Nc7 47. Nxf6+ (47. Nxc7 d3 $18) 47... Rxf6 48. exf6) 43... Nxd6 $11 {[%emt 0:00:03]} 44. Rxd6 {[%emt 0:00:01]} d3 $2 {[%emt 0:00:01][%mdl 8192]} (44... Re1 $11) 45. e7 $1 {[%emt 0:00:03]} (45. Rxa6 d2 46. Rd6 Kg4 $11) 45... Re1 {[%emt 0:00:05]} 46. Re6 {[%emt 0:00:24]} d2 {[%emt 0:00:04]} 47. e8=Q {[%emt 0:00:00]} (47. e8=B {leads to mate.} d1=Q (47... d1=R $2 48. g3+ Kg4 49. Rg6+ Kxf5 50. Kg2 $19) 48. g3+ Kg4 49. Bc6 Re2+ (49... Kxf5 50. Rxe1 Qxe1 51. Kg2 Qe2+ 52. Kh3 Qf1+ 53. Bg2 Qf2 54. Bd5 h5 55. Bg2 Kg5 56. Kh2 Kg4 57. Kh1 Kxg3 58. Be4 Qh2#) 50. Bg2 Rxg2+ (50... Kxf5 {gets mated.} 51. Rxa6 Qd5 52. Ra5 Qxa5 53. Kg1 Qe1+ 54. Kh2 Qf2 55. g4+ Kxg4 56. Kh1 Qxg2#) 51. Kxg2 Qf3+ (51... Kxf5 52. Re7 $19) 52. Kh2 Qf2+ (52... Kxf5 $2 53. Re7 $19) 53. Kh1 Kh3 (53... Kxg3 54. Rg6+ Kh3 55. Rxh6+ gxh6 56. f6 Qh2#) (53... Kxg3 54. Rg6+ Kh3 55. Rxh6+ gxh6 56. f6 Qh2#)) 47... Rxe6 {[%emt 0:00:04]} 48. Qd8+ {[%emt 0:00:00]} Rf6 {[%emt 0:00:04]} 49. Qxd2 {[%emt 0:00:00]} Rxf5 {[%emt 0:00:03]} 50. Qd4+ {[%emt 0:00:00]} Kg5 {[%emt 0:00:03]} 51. Qxg7+ {[%emt 0:00:00]} Kf4 {[%emt 0:00:04]} 52. Qd4+ {[%emt 0:00:00]} Kg5 {[%emt 0:00:01]} 53. Qd8+ {[%emt 0:00:00]} Kg6 {[%emt 0:00:03]} 54. Kg3 {[%emt 0:00:00]} (54. Qd3 $142 Kf6 55. Qxa6+ Kg7 56. Qb7+ Kg6 57. Qc6+ Kg7 58. Qc7+ Kg6 59. Qd6+ Kg7 60. Qe7+ Rf7 61. Qe5+ Kg8 62. Kg3) 54... Rf6 {[%emt 0:00:02]} 55. Qd5 {[%emt 0:00:00]} Kg7 {[%emt 0:00:04]} 56. Kh4 {[%emt 0:00:02]} Kg6 {[%emt 0:00:02]} 57. Qg8+ {[%emt 0:00:03]} Kf5 {[%emt 0:00:02]} 58. g4+ {[%emt 0:00:03]} Ke5 {[%emt 0:00:02]} 59. Qe8+ {[%emt 0:00:01]} Re6 {[%emt 0:00:02]} 60. Qd8 {[%emt 0:00:05]} Rf6 {[%emt 0:00:04]} 61. Kh5 {[%emt 0:00:02]} Re6 {[%emt 0:00:01]} 62. Qa5+ {[%emt 0:00:00]} (62. Qf8 $142 Kd4 63. Qxh6 (63. Qb4+ Kd5 $18) 63... Kd5 64. Qd2+ Kc6 65. g5 Re5 66. Qa2 Kb6 67. Qf2+ Rc5 68. Kh6) 1-0